[Event "GrandPrix_29.05"]
[Site "Chess.com"]
[Date "2020.05.29"]
[Round "3"]
[White "Sakkcapak"]
[Black "Kostya_Nikologorskiy"]
[Result "0-1"]
[WhiteElo "2096"]
[BlackElo "2285"]
[TimeControl "600+2"]
[EndTime "10:27:52 PDT"]
[Termination "Kostya_Nikologorskiy won by resignation"]

1. c4 {[%clk 0:10:01.9]} 1... Nf6 {[%clk 0:09:58.7]} 2. g3 {[%clk 0:10:01.8]}
2... g6 {[%clk 0:09:56.3]} 3. Bg2 {[%clk 0:10:02]} 3... Bg7 {[%clk 0:09:57.7]}
4. Nc3 {[%clk 0:10:02.3]} 4... O-O {[%clk 0:09:58.8]} 5. d3 {[%clk 0:10:01.4]}
5... c6 {[%clk 0:09:51]} 6. e4 {[%clk 0:10:01.4]} 6... d5 {[%clk 0:09:40.9]} 7.
cxd5 {[%clk 0:09:38.6]} 7... cxd5 {[%clk 0:09:39.7]} 8. e5 {[%clk 0:09:36.9]}
8... Nfd7 {[%clk 0:09:16.8]} 9. d4 {[%clk 0:09:37.6]} 9... Nb6 {[%clk
0:09:10.6]} 10. Nge2 {[%clk 0:09:35.4]} 10... Nc6 {[%clk 0:09:07.6]} 11. O-O
{[%clk 0:09:35.4]} 11... Bg4 {[%clk 0:09:03.1]} 12. Be3 {[%clk 0:09:27.8]} 12...
Bxe2 {[%clk 0:08:26.6]} 13. Qxe2 {[%clk 0:09:27.5]} 13... Rc8 {[%clk 0:08:27.9]}
14. Rac1 {[%clk 0:09:21.4]} 14... e6 {[%clk 0:08:25.7]} 15. Nb5 {[%clk
0:08:41.5]} 15... Nc4 {[%clk 0:08:11.1]} 16. b3 {[%clk 0:08:37.6]} 16... Nxe3
{[%clk 0:08:06.5]} 17. fxe3 {[%clk 0:08:30.2]} 17... f6 {[%clk 0:07:54.7]} 18.
Qg4 {[%clk 0:07:44.1]} 18... f5 {[%clk 0:07:44.2]} 19. Qe2 {[%clk 0:07:43.3]}
19... Qg5 {[%clk 0:07:06.1]} 20. Qf2 {[%clk 0:06:36.5]} 20... Nb4 {[%clk
0:06:35.3]} 21. Qd2 {[%clk 0:06:28.9]} 21... Bh6 {[%clk 0:06:02.2]} 22. Rf3
{[%clk 0:04:20.8]} 22... Rxc1+ {[%clk 0:04:52.6]} 23. Qxc1 {[%clk 0:04:20.4]}
23... Qd8 {[%clk 0:04:33.6]} 24. Nd6 {[%clk 0:03:48.7]} 24... Qa5 {[%clk
0:04:13.9]} 25. Qd2 {[%clk 0:03:34.8]} 25... Qa3 {[%clk 0:03:32.1]} 26. Nb5
{[%clk 0:03:18.2]} 26... Qa5 {[%clk 0:03:17.2]} 27. Nd6 {[%clk 0:03:19]} 27...
b6 {[%clk 0:03:07.2]} 28. a4 {[%clk 0:03:04]} 28... Nc6 {[%clk 0:02:11.7]} 29.
Qxa5 {[%clk 0:02:50.4]} 29... bxa5 {[%clk 0:02:12.3]} 30. Bf1 {[%clk 0:02:33.1]}
30... Rb8 {[%clk 0:02:10.9]} 31. Bb5 {[%clk 0:02:32.3]} 31... Nd8 {[%clk
0:02:02]} 32. Kf2 {[%clk 0:02:11.9]} 32... a6 {[%clk 0:02:02.1]} 33. Bxa6 {[%clk
0:02:11.1]} 33... Rxb3 {[%clk 0:02:03.1]} 34. Bb5 {[%clk 0:01:59.2]} 34... Rb2+
{[%clk 0:01:54.1]} 35. Kg1 {[%clk 0:01:59.7]} 35... Nf7 {[%clk 0:01:34.3]} 36.
Nxf7 {[%clk 0:01:41.3]} 36... Kxf7 {[%clk 0:01:36.2]} 37. g4 {[%clk 0:01:32.9]}
37... Rb3 {[%clk 0:01:22.2]} 38. Kf2 {[%clk 0:01:33.1]} 38... Bg5 {[%clk
0:01:21.5]} 39. gxf5 {[%clk 0:01:26.7]} 39... gxf5 {[%clk 0:01:17.6]} 40. Bd7
{[%clk 0:01:01.4]} 40... Ke7 {[%clk 0:01:11.8]} 41. Bb5 {[%clk 0:01:01.7]} 41...
h6 {[%clk 0:01:13]} 42. Bc6 {[%clk 0:00:47.1]} 42... Rb2+ {[%clk 0:01:10.5]} 43.
Kg3 {[%clk 0:00:42.1]} 43... Re2 {[%clk 0:01:11.3]} 44. h4 {[%clk 0:00:17.9]}
44... Bxe3 {[%clk 0:01:08.3]} 45. Bb5 {[%clk 0:00:18.7]} 45... Re1 {[%clk
0:01:02.4]} 46. Kg2 {[%clk 0:00:18.2]} 46... Bxd4 {[%clk 0:01:00.7]} 47. Rb3
{[%clk 0:00:18.9]} 47... Bxe5 {[%clk 0:01:01.5]} 48. Bf1 {[%clk 0:00:17.2]}
48... Rd1 {[%clk 0:01:01.5]} 49. Rb7+ {[%clk 0:00:17.2]} 49... Kf6 {[%clk
0:01:02.9]} 50. Bb5 {[%clk 0:00:16.4]} 50... Rd2+ {[%clk 0:01:02.1]} 51. Kf3
{[%clk 0:00:16.7]} 51... Rh2 {[%clk 0:01:02.9]} 52. Ra7 {[%clk 0:00:11.7]} 52...
Bc3 {[%clk 0:00:59.9]} 53. Rc7 {[%clk 0:00:10.7]} 53... Bb4 {[%clk 0:01:00.3]}
54. Bd7 {[%clk 0:00:08.7]} 54... Rxh4 {[%clk 0:01:00.3]} 55. Rc6 {[%clk
0:00:09.9]} 55... Re4 {[%clk 0:01:01.5]} 56. Bc8 {[%clk 0:00:10.1]} 56... d4
{[%clk 0:01:02.8]} 57. Rc7 {[%clk 0:00:09.7]} 57... d3 {[%clk 0:01:03.5]} 58.
Rd7 {[%clk 0:00:10.7]} 58... d2 {[%clk 0:01:04.9]} 59. Bb7 {[%clk 0:00:09.2]}
59... Re1 {[%clk 0:01:05.9]} 0-1

[Event "GrandPrix_29.05"]
[Site "Chess.com"]
[Date "2020.05.29"]
[Round "3"]
[White "Alexander_Donchenko"]
[Black "Keks2017"]
[Result "1-0"]
[WhiteElo "2746"]
[BlackElo "2384"]
[TimeControl "600+2"]
[EndTime "10:27:56 PDT"]
[Termination "Alexander_Donchenko won by resignation"]

1. Nf3 {[%clk 0:10:01.9]} 1... Nf6 {[%clk 0:09:58.5]} 2. c4 {[%clk 0:10:02]}
2... d6 {[%clk 0:09:56.7]} 3. d4 {[%clk 0:10:02]} 3... Nbd7 {[%clk 0:09:57.1]}
4. g3 {[%clk 0:10:00.5]} 4... g6 {[%clk 0:09:57.1]} 5. Bg2 {[%clk 0:10:01.5]}
5... Bg7 {[%clk 0:09:58]} 6. Nc3 {[%clk 0:10:02.9]} 6... O-O {[%clk 0:09:58.3]}
7. O-O {[%clk 0:10:04.4]} 7... e5 {[%clk 0:09:58.9]} 8. e4 {[%clk 0:10:05.9]}
8... exd4 {[%clk 0:09:59.5]} 9. Nxd4 {[%clk 0:10:07.8]} 9... Re8 {[%clk
0:10:00.2]} 10. h3 {[%clk 0:10:09]} 10... a6 {[%clk 0:09:59.4]} 11. Be3 {[%clk
0:10:08.4]} 11... Rb8 {[%clk 0:09:58.5]} 12. b3 {[%clk 0:10:02.6]} 12... Ne5
{[%clk 0:09:55.5]} 13. f4 {[%clk 0:09:04.3]} 13... Ned7 {[%clk 0:09:54.7]} 14.
Re1 {[%clk 0:08:53.5]} 14... c5 {[%clk 0:09:46.4]} 15. Nde2 {[%clk 0:08:29.6]}
15... b5 {[%clk 0:09:43.5]} 16. Qd3 {[%clk 0:08:15.3]} 16... b4 {[%clk 0:09:15]}
17. Na4 {[%clk 0:07:40]} 17... Bb7 {[%clk 0:08:11.7]} 18. e5 {[%clk 0:07:22.9]}
18... dxe5 {[%clk 0:08:05.8]} 19. Bxb7 {[%clk 0:07:23.5]} 19... Rxb7 {[%clk
0:08:05.2]} 20. Rad1 {[%clk 0:07:08.7]} 20... Qc8 {[%clk 0:07:58.4]} 21. Qd6
{[%clk 0:05:14.6]} 21... Re6 {[%clk 0:06:38.9]} 22. Qd2 {[%clk 0:05:14.7]} 22...
Qc6 {[%clk 0:06:15.5]} 23. Rf1 {[%clk 0:05:14.1]} 23... Ne4 {[%clk 0:05:12.8]}
24. Qd5 {[%clk 0:05:09.9]} 24... Qxd5 {[%clk 0:04:35.7]} 25. Rxd5 {[%clk
0:04:44.1]} 25... exf4 {[%clk 0:04:22]} 26. Nxf4 {[%clk 0:04:09.8]} 26... Re8
{[%clk 0:03:44.5]} 27. Rfd1 {[%clk 0:03:49.1]} 27... Ndf6 {[%clk 0:01:11.4]} 28.
Rd8 {[%clk 0:03:34.7]} 28... Rb8 {[%clk 0:01:07.5]} 29. Rxb8 {[%clk 0:03:29.6]}
29... Rxb8 {[%clk 0:01:07.7]} 30. Nxc5 {[%clk 0:03:23.7]} 30... Nxg3 {[%clk
0:01:04.6]} 31. Nxa6 {[%clk 0:03:16.7]} 31... Re8 {[%clk 0:01:04.7]} 32. Bb6
{[%clk 0:03:03.8]} 32... Bf8 {[%clk 0:00:41.4]} 33. Rd8 {[%clk 0:02:39.5]} 33...
Rxd8 {[%clk 0:00:34.6]} 34. Bxd8 {[%clk 0:02:41.4]} 34... Nd7 {[%clk 0:00:21.9]}
35. Nd3 {[%clk 0:02:19.5]} 35... Ne2+ {[%clk 0:00:21.2]} 36. Kf2 {[%clk
0:01:59.3]} 36... Nc3 {[%clk 0:00:21.5]} 37. Ndxb4 {[%clk 0:01:45.2]} 37... Nc5
{[%clk 0:00:22.1]} 38. Bb6 {[%clk 0:01:27.5]} 38... Nxa6 {[%clk 0:00:22.4]} 39.
Nxa6 {[%clk 0:01:29.4]} 39... Nxa2 {[%clk 0:00:23.2]} 40. c5 {[%clk 0:01:28.5]}
40... Nc1 {[%clk 0:00:23.4]} 41. c6 {[%clk 0:01:28.1]} 41... Bd6 {[%clk
0:00:24.3]} 42. Bc7 {[%clk 0:01:04.7]} 42... Be7 {[%clk 0:00:19.8]} 43. Bf4
{[%clk 0:00:54.2]} 43... Nd3+ {[%clk 0:00:19.7]} 44. Ke3 {[%clk 0:00:47.1]}
44... Nxf4 {[%clk 0:00:16.9]} 45. Kxf4 {[%clk 0:00:49]} 45... Bd6+ {[%clk
0:00:16.9]} 46. Ke4 {[%clk 0:00:46]} 46... f5+ {[%clk 0:00:17.7]} 47. Kd5 {[%clk
0:00:47.2]} 47... f4 {[%clk 0:00:16.8]} 48. Ke4 {[%clk 0:00:32.5]} 48... Kf7
{[%clk 0:00:15.8]} 49. c7 {[%clk 0:00:33.4]} 49... Bxc7 {[%clk 0:00:16.7]} 50.
Nxc7 {[%clk 0:00:35.3]} 50... g5 {[%clk 0:00:18.2]} 51. Nd5 {[%clk 0:00:36.1]}
51... Ke6 {[%clk 0:00:19]} 52. Nxf4+ {[%clk 0:00:27]} 52... gxf4 {[%clk
0:00:19.8]} 53. Kxf4 {[%clk 0:00:28.9]} 53... Kd5 {[%clk 0:00:21]} 54. Kg5
{[%clk 0:00:29.8]} 1-0

[Event "GrandPrix_29.05"]
[Site "Chess.com"]
[Date "2020.05.29"]
[Round "3"]
[White "klippfiskkjerringa"]
[Black "aleksandrovaleksei"]
[Result "1/2-1/2"]
[WhiteElo "2253"]
[BlackElo "2391"]
[TimeControl "600+2"]
[EndTime "10:27:57 PDT"]
[Termination "Game drawn by agreement"]

1. Nf3 {[%clk 0:10:01.9]} 1... Nf6 {[%clk 0:10:00.2]} 2. e3 {[%clk 0:10:02.4]}
2... d5 {[%clk 0:09:57.1]} 3. c4 {[%clk 0:10:03]} 3... e6 {[%clk 0:09:56.6]} 4.
b3 {[%clk 0:10:01.8]} 4... Be7 {[%clk 0:09:48.3]} 5. Bb2 {[%clk 0:10:02.4]} 5...
O-O {[%clk 0:09:49]} 6. Nc3 {[%clk 0:09:57.3]} 6... dxc4 {[%clk 0:09:16.8]} 7.
bxc4 {[%clk 0:09:39]} 7... b6 {[%clk 0:09:16.7]} 8. d4 {[%clk 0:09:34.9]} 8...
Bb7 {[%clk 0:09:17.2]} 9. Bd3 {[%clk 0:09:35.3]} 9... c5 {[%clk 0:09:17.8]} 10.
O-O {[%clk 0:09:26.7]} 10... cxd4 {[%clk 0:08:54.6]} 11. exd4 {[%clk 0:09:16.5]}
11... Nc6 {[%clk 0:08:55.6]} 12. Re1 {[%clk 0:08:10.7]} 12... Rc8 {[%clk
0:08:41.2]} 13. d5 {[%clk 0:06:51.2]} 13... Nb4 {[%clk 0:08:39.2]} 14. Bf1
{[%clk 0:06:19.6]} 14... exd5 {[%clk 0:08:37.7]} 15. a3 {[%clk 0:06:18.4]} 15...
Na6 {[%clk 0:07:45.1]} 16. Nxd5 {[%clk 0:06:11.5]} 16... Nxd5 {[%clk 0:07:44.9]}
17. cxd5 {[%clk 0:06:12]} 17... Nc7 {[%clk 0:07:45.9]} 18. Rxe7 {[%clk
0:05:46.4]} 18... Qxe7 {[%clk 0:07:46.5]} 19. d6 {[%clk 0:05:05.4]} 19... Qe6
{[%clk 0:07:24.3]} 20. dxc7 {[%clk 0:04:48.8]} 20... Rxc7 {[%clk 0:07:25]} 21.
Qd4 {[%clk 0:04:42.7]} 21... Qh6 {[%clk 0:07:23.4]} 22. Ne5 {[%clk 0:04:32.9]}
22... Qf6 {[%clk 0:07:05]} 23. Qd2 {[%clk 0:04:08.2]} 23... Rd8 {[%clk
0:06:53.6]} 24. Qb4 {[%clk 0:03:42.4]} 24... Rc2 {[%clk 0:06:47.2]} 25. Nd3
{[%clk 0:03:16]} 25... Qc6 {[%clk 0:05:59.1]} 26. Qg4 {[%clk 0:02:59.2]} 26...
Qg6 {[%clk 0:05:54.9]} 27. Qxg6 {[%clk 0:02:20.9]} 27... hxg6 {[%clk 0:05:54]}
28. Rc1 {[%clk 0:02:05.5]} 28... Rdc8 {[%clk 0:05:32.6]} 29. Rxc2 {[%clk
0:01:23.9]} 29... Rxc2 {[%clk 0:05:32.5]} 30. Be5 {[%clk 0:01:23.1]} 30... Ra2
{[%clk 0:05:13.4]} 31. Bd6 {[%clk 0:01:22.3]} 31... Ra1 {[%clk 0:04:49.8]} 32.
f3 {[%clk 0:01:07.5]} 32... Ba6 {[%clk 0:04:24.5]} 33. Kf2 {[%clk 0:01:08.4]}
33... Ra2+ {[%clk 0:04:18.5]} 34. Ke3 {[%clk 0:01:06.9]} 34... Ra1 {[%clk
0:04:08.1]} 35. Be2 {[%clk 0:01:07]} 35... Bc4 {[%clk 0:03:56.1]} 36. g4 {[%clk
0:01:04.3]} 36... b5 {[%clk 0:03:54]} 37. Bb4 {[%clk 0:01:03.4]} 37... a5 {[%clk
0:03:43.7]} 38. Bxa5 {[%clk 0:01:02.9]} 38... Rxa3 {[%clk 0:03:44.4]} 39. Bb4
{[%clk 0:01:03.8]} 39... Ra2 {[%clk 0:03:30.3]} 40. Bd6 {[%clk 0:00:52.5]} 40...
g5 {[%clk 0:03:26.8]} 41. f4 {[%clk 0:00:49.2]} 41... gxf4+ {[%clk 0:03:10.4]}
42. Nxf4 {[%clk 0:00:49.1]} 42... g5 {[%clk 0:03:00]} 43. Nd3 {[%clk 0:00:42.8]}
43... f6 {[%clk 0:02:57.2]} 44. Nc1 {[%clk 0:00:30.5]} 44... Rc2 {[%clk
0:02:57.8]} 45. Bxc4+ {[%clk 0:00:26.2]} 45... Rxc4 {[%clk 0:02:58.2]} 46. Ne2
{[%clk 0:00:17.5]} 46... b4 {[%clk 0:02:37.1]} 47. Nd4 {[%clk 0:00:14.6]} 47...
b3 {[%clk 0:02:37.8]} 48. Ba3 {[%clk 0:00:14.7]} 48... Ra4 {[%clk 0:02:31]} 49.
Bc1 {[%clk 0:00:12.7]} 49... Ra1 {[%clk 0:02:18.8]} 50. Kd2 {[%clk 0:00:13.3]}
50... Rb1 {[%clk 0:02:19.9]} 51. Ba3 {[%clk 0:00:10.7]} 51... b2 {[%clk
0:02:19.2]} 52. Kc2 {[%clk 0:00:11.4]} 52... Rh1 {[%clk 0:02:14.7]} 53. Bxb2
{[%clk 0:00:12.5]} 53... Rxh2+ {[%clk 0:02:15.6]} 54. Kb3 {[%clk 0:00:14]} 54...
Kf7 {[%clk 0:01:54.6]} 55. Nf5 {[%clk 0:00:15.1]} 55... Rf2 {[%clk 0:01:12.8]}
56. Ne3 {[%clk 0:00:14.7]} 56... Ke6 {[%clk 0:01:10.6]} 57. Bd4 {[%clk
0:00:15.8]} 1/2-1/2

[Event "GrandPrix_29.05"]
[Site "Chess.com"]
[Date "2020.05.29"]
[Round "3"]
[White "WoodlandMagic"]
[Black "LazovT"]
[Result "0-1"]
[WhiteElo "2079"]
[BlackElo "2075"]
[TimeControl "600+2"]
[EndTime "10:27:57 PDT"]
[Termination "LazovT won on time"]

1. d4 {[%clk 0:09:50.5]} 1... d6 {[%clk 0:09:56.3]} 2. c4 {[%clk 0:09:46]} 2...
g6 {[%clk 0:09:57.3]} 3. Nc3 {[%clk 0:09:42.4]} 3... Bg7 {[%clk 0:09:58.8]} 4.
e4 {[%clk 0:09:40.3]} 4... Nd7 {[%clk 0:09:59.5]} 5. Be3 {[%clk 0:09:38.1]} 5...
e5 {[%clk 0:10:00.7]} 6. d5 {[%clk 0:09:36.2]} 6... h5 {[%clk 0:10:01.3]} 7. Bd3
{[%clk 0:09:22.1]} 7... Bh6 {[%clk 0:10:01.4]} 8. Bxh6 {[%clk 0:09:22.9]} 8...
Nxh6 {[%clk 0:09:58.2]} 9. h4 {[%clk 0:09:18.7]} 9... Ng4 {[%clk 0:09:51.5]} 10.
f3 {[%clk 0:09:12.6]} 10... Nh6 {[%clk 0:09:44.4]} 11. Qd2 {[%clk 0:09:00.6]}
11... Nc5 {[%clk 0:09:35.4]} 12. Bc2 {[%clk 0:08:45.9]} 12... a5 {[%clk
0:09:36.6]} 13. O-O-O {[%clk 0:08:46.6]} 13... a4 {[%clk 0:09:36.8]} 14. Kb1
{[%clk 0:08:25.8]} 14... Bd7 {[%clk 0:09:33.7]} 15. Nge2 {[%clk 0:08:14.9]}
15... f6 {[%clk 0:09:29.1]} 16. Rhg1 {[%clk 0:07:45.3]} 16... Qb8 {[%clk
0:09:11.8]} 17. Rdf1 {[%clk 0:07:02.6]} 17... Qa7 {[%clk 0:09:12.1]} 18. Nd1
{[%clk 0:07:03.3]} 18... b5 {[%clk 0:09:04.5]} 19. Ne3 {[%clk 0:07:01.5]} 19...
bxc4 {[%clk 0:09:04.8]} 20. a3 {[%clk 0:06:52.7]} 20... Rb8 {[%clk 0:08:42]} 21.
Nc3 {[%clk 0:06:37.3]} 21... Nb3 {[%clk 0:08:21.1]} 22. Bxb3 {[%clk 0:06:34.8]}
22... Rxb3 {[%clk 0:08:23]} 23. g4 {[%clk 0:06:07.7]} 23... Qd4 {[%clk 0:08:14]}
24. Rd1 {[%clk 0:05:51.9]} 24... Qxd2 {[%clk 0:07:58.5]} 25. Rxd2 {[%clk
0:05:51.3]} 25... hxg4 {[%clk 0:07:58.1]} 26. fxg4 {[%clk 0:05:49.2]} 26... Nf7
{[%clk 0:07:57.7]} 27. Rf2 {[%clk 0:05:02.9]} 27... Rxh4 {[%clk 0:07:19.8]} 28.
Rxf6 {[%clk 0:04:59]} 28... Ng5 {[%clk 0:07:21]} 29. Rgf1 {[%clk 0:03:41.4]}
29... Rh2 {[%clk 0:06:39]} 30. Nxc4 {[%clk 0:03:05.5]} 30... Rh6 {[%clk
0:05:04.4]} 31. Rf8+ {[%clk 0:01:11.9]} 31... Ke7 {[%clk 0:05:03.2]} 32. Rg8
{[%clk 0:01:10.3]} 32... Rh7 {[%clk 0:02:45.4]} 33. Rxg6 {[%clk 0:01:04.6]}
33... Nh3 {[%clk 0:02:42.1]} 34. Nd2 {[%clk 0:00:29.3]} 34... Rb8 {[%clk
0:02:42]} 35. g5 {[%clk 0:00:16.3]} 35... Nf4 {[%clk 0:02:26.4]} 36. Rh6 {[%clk
0:00:16.5]} 36... Rg7 {[%clk 0:02:27.4]} 37. Rfh1 {[%clk 0:00:14.2]} 37... Nd3
{[%clk 0:02:23.8]} 38. Nc4 {[%clk 0:00:14.2]} 38... Rbg8 {[%clk 0:02:21.5]} 39.
Rh7 {[%clk 0:00:14.4]} 39... Nc5 {[%clk 0:02:14.1]} 40. g6 {[%clk 0:00:10.4]}
40... Bg4 {[%clk 0:02:01]} 41. Kc2 {[%clk 0:00:06.9]} 41... Bf3 {[%clk 0:01:49]}
42. R1h4 {[%clk 0:00:07.7]} 42... Kf6 {[%clk 0:01:49]} 43. Rxg7 {[%clk
0:00:06.9]} 43... Rxg7 {[%clk 0:01:50.9]} 44. Kd2 {[%clk 0:00:07.8]} 44... Kxg6
{[%clk 0:01:09.8]} 45. Ke3 {[%clk 0:00:08.9]} 45... Rf7 {[%clk 0:01:11.2]} 46.
Rh3 {[%clk 0:00:05.2]} 46... Bg4 {[%clk 0:01:11.7]} 47. Rg3 {[%clk 0:00:06.3]}
47... Kg5 {[%clk 0:01:11.3]} 48. Nb5 {[%clk 0:00:04]} 48... Kh4 {[%clk
0:01:11.4]} 49. Rg1 {[%clk 0:00:03.9]} 49... Rf3+ {[%clk 0:01:06]} 50. Kd2
{[%clk 0:00:05]} 50... Nxe4+ {[%clk 0:01:07.4]} 51. Kc2 {[%clk 0:00:06.4]} 51...
Rf2+ {[%clk 0:00:51.1]} 52. Kc1 {[%clk 0:00:07.1]} 52... Be2 {[%clk 0:00:52.2]}
53. Re1 {[%clk 0:00:04]} 53... Rf1 {[%clk 0:00:48.1]} 54. Rxf1 {[%clk
0:00:03.1]} 54... Bxf1 {[%clk 0:00:50]} 55. b3 {[%clk 0:00:03]} 55... axb3
{[%clk 0:00:50]} 0-1

[Event "GrandPrix_29.05"]
[Site "Chess.com"]
[Date "2020.05.29"]
[Round "3"]
[White "Artur0208"]
[Black "1stSecond"]
[Result "1/2-1/2"]
[WhiteElo "2336"]
[BlackElo "2552"]
[TimeControl "600+2"]
[EndTime "10:28:00 PDT"]
[Termination "Game drawn by repetition"]

1. d4 {[%clk 0:10:01.9]} 1... Nf6 {[%clk 0:09:55.3]} 2. c4 {[%clk 0:10:02.3]}
2... e6 {[%clk 0:09:50.9]} 3. Nf3 {[%clk 0:10:02.1]} 3... a6 {[%clk 0:09:44.3]}
4. Nc3 {[%clk 0:09:53.8]} 4... d5 {[%clk 0:09:45]} 5. Bg5 {[%clk 0:09:51]} 5...
dxc4 {[%clk 0:09:44.6]} 6. a4 {[%clk 0:09:43]} 6... Nc6 {[%clk 0:09:37.5]} 7. e3
{[%clk 0:09:31.2]} 7... Na5 {[%clk 0:09:35.9]} 8. Nd2 {[%clk 0:09:31.8]} 8... c5
{[%clk 0:09:30.3]} 9. Nxc4 {[%clk 0:09:32.7]} 9... cxd4 {[%clk 0:09:23]} 10.
Qxd4 {[%clk 0:09:25.3]} 10... Qxd4 {[%clk 0:09:18.2]} 11. exd4 {[%clk
0:09:27.2]} 11... Bb4 {[%clk 0:09:17.1]} 12. Nb6 {[%clk 0:08:28.4]} 12... Rb8
{[%clk 0:08:02]} 13. Bf4 {[%clk 0:07:55.3]} 13... Ne4 {[%clk 0:08:01.1]} 14.
Bxb8 {[%clk 0:07:47]} 14... Nxc3 {[%clk 0:07:59.9]} 15. Bd6 {[%clk 0:07:16.2]}
15... Bxd6 {[%clk 0:07:36.5]} 16. bxc3 {[%clk 0:07:13.4]} 16... Bd7 {[%clk
0:07:28.8]} 17. Be2 {[%clk 0:03:52.6]} 17... Bc6 {[%clk 0:07:05.9]} 18. Bf3
{[%clk 0:03:49.3]} 18... Bxf3 {[%clk 0:05:55]} 19. gxf3 {[%clk 0:03:51.2]} 19...
Bc7 {[%clk 0:05:56.3]} 20. Rb1 {[%clk 0:03:50.8]} 20... Ke7 {[%clk 0:05:57.7]}
21. Ke2 {[%clk 0:03:51.4]} 21... Kd6 {[%clk 0:04:49.4]} 22. Kd3 {[%clk
0:03:33.5]} 22... Kc6 {[%clk 0:04:50.5]} 23. Nc4 {[%clk 0:03:34.4]} 23... Nxc4
{[%clk 0:04:52.1]} 24. Kxc4 {[%clk 0:03:36.3]} 24... Rd8 {[%clk 0:04:53.3]} 25.
Rhg1 {[%clk 0:03:33.9]} 25... g6 {[%clk 0:04:53.4]} 26. Rg5 {[%clk 0:03:35]}
26... b6 {[%clk 0:04:44.3]} 27. h3 {[%clk 0:03:35.8]} 27... h6 {[%clk 0:04:42]}
28. Rgg1 {[%clk 0:03:36.3]} 28... Rd5 {[%clk 0:04:43.4]} 29. Kd3 {[%clk
0:02:52.8]} 29... Rh5 {[%clk 0:04:43.8]} 30. Rh1 {[%clk 0:02:53.4]} 30... Rf5
{[%clk 0:04:44.9]} 31. Ke4 {[%clk 0:02:51.6]} 31... Ra5 {[%clk 0:04:28.2]} 32.
Ra1 {[%clk 0:02:37]} 32... Rh5 {[%clk 0:04:19.1]} 33. Rab1 {[%clk 0:02:20.5]}
33... Ra5 {[%clk 0:04:18]} 34. Ra1 {[%clk 0:02:12.2]} 34... Rh5 {[%clk
0:04:18.8]} 35. h4 {[%clk 0:01:44.6]} 35... Rf5 {[%clk 0:04:15.7]} 36. Rad1
{[%clk 0:01:31.9]} 36... Ra5 {[%clk 0:04:11.4]} 37. Ra1 {[%clk 0:01:32.8]} 37...
Bd8 {[%clk 0:04:12.6]} 38. c4 {[%clk 0:01:28.5]} 38... Rh5 {[%clk 0:04:00.4]}
39. Rad1 {[%clk 0:01:27.6]} 39... Kd6 {[%clk 0:03:47.1]} 40. c5+ {[%clk
0:01:24.4]} 40... Kc6 {[%clk 0:02:33.5]} 41. cxb6 {[%clk 0:01:25.1]} 41... Bxb6
{[%clk 0:02:35.4]} 42. Rc1+ {[%clk 0:01:25.8]} 42... Kd6 {[%clk 0:02:28.8]} 43.
Rb1 {[%clk 0:01:26.1]} 43... Bd8 {[%clk 0:02:07.3]} 44. Rb7 {[%clk 0:01:24.8]}
44... Ra5 {[%clk 0:01:39.6]} 45. Rxf7 {[%clk 0:01:03.1]} 45... Rxa4 {[%clk
0:01:40.9]} 46. Rb1 {[%clk 0:00:39.3]} 46... e5 {[%clk 0:01:34.4]} 47. Rd1
{[%clk 0:00:38.3]} 47... Bxh4 {[%clk 0:01:35.3]} 48. Rg7 {[%clk 0:00:38.5]}
48... exd4 {[%clk 0:01:21]} 49. Rxg6+ {[%clk 0:00:39.4]} 49... Kc5 {[%clk
0:01:22.4]} 50. Rc1+ {[%clk 0:00:37.9]} 50... Kb5 {[%clk 0:01:21]} 51. Rxh6
{[%clk 0:00:38.1]} 51... Bxf2 {[%clk 0:01:07.6]} 52. Rcc6 {[%clk 0:00:38.4]}
52... d3+ {[%clk 0:00:34.2]} 53. Kxd3 {[%clk 0:00:37.6]} 53... Ra3+ {[%clk
0:00:35.8]} 54. Ke4 {[%clk 0:00:31.9]} 54... Ra4+ {[%clk 0:00:36]} 55. Kd3
{[%clk 0:00:20.4]} 55... Ra3+ {[%clk 0:00:36.9]} 56. Ke2 {[%clk 0:00:21.7]}
56... Ra2+ {[%clk 0:00:36.6]} 57. Kd3 {[%clk 0:00:20.6]} 57... Ra3+ {[%clk
0:00:37.3]} 1/2-1/2